Workbook

Sheet MENU

Sheet CLIENTES
A1: NUMERO DE CLIENTE | B1: NOMBRE DEL CLIENTE
A2: 1001 | B2: CARLOS XXXX
A3: 1002 | B3: ROSA ZZZZZ
A4: 1003 | B4: MARIA YYYYY
A5: 1004 | B5: ALEXA SSSSS

Sheet ARTICULOS
A1: CODIGO | B1: NOMBRE DEL ARTICULO | C1: DESCRIPCION | D1: PRECIO UNT.
A2: 2000 | B2: ABANICO | C2: NEGRO, MARCA XXX | D2: 250.00
A3: 2001 | B3: CPU HP | C3: 500 GB DE DISCO DURO | D3: 3,000.00
A4: 2002 | B4: MONITORES HP | C4: 21 PULGADAS | D4: 1,000.00
A5: 2003 | B5: MOUSE | C5: COLOR NEGRO | D5: 150.00
A6: 2004 | B6: TECLADO | C6: GENIUS | D6: 150.00
A7: 2005 | B7: CUADERNOS | C7: NOTE | D7: 25.00
A8: 2006 | B8: LAPICEROS | C8: BIG | D8: 10.00
A9: 2007 | B9: AMPOS | C9: ESPECIALES | D9: 70.00
A10: 2008 | B10: LAPTOP TOSHIBA | C10: 1TB DE DISCO DURO | D10: 16,000.00
A11: 2009 | B11: MEMORIAS RAM | C11: DE 4 GB | D11: 500.00
A12: 2010 | B12: DISCO DUROS | C12: 1 TB | D12: 2,000.00

Sheet SEGUIMIENTO
A1: FECHA | B1: Nº DE FACT | C1: FECHA DE VENC. | D1: DIAS DE MORA | E1: ESTADO | F1: Nº CLIENTE | G1: NOMBRE DE CLIENTE | H1: CODIGO | I1: NOMBRE DEL ARTICULO | J1: DESCRIPCION | K1: PRECIO UNIT. | L1: CANTIDAD | M1: IMPUESTO | N1: TOTAL
A2: 2017-03-04 | B2: 1 | C2: 2017-02-05 | D2: =IF(C2=ISBLANK(0),0,IF(C2<TODAY(),DAYS360(TODAY(),C2,FALSE),IF(C2>TODAY(),DAYS360(TODAY(),C2,FALSE),0))) -> -31 | E2: =IF(BASE[[#This Row],[DIAS DE MORA]]<0,"VENCIDO",IF(BASE[[#This Row],[FECHA DE VENC.]]>1,"PENDIENTE","")) -> VENCIDO | F2: 1001 | G2: =IF(F2<>0,VLOOKUP(F2,CLIENTE[],2,0),"") -> CARLOS XXXX | H2: 2000 | I2: =IF(H2<>0,VLOOKUP(H2,PRODUCTOS[],2,0),"") -> ABANICO | J2: =IF(H2<>0,VLOOKUP(H2,PRODUCTOS[],3,0),"") -> NEGRO, MARCA XXX | K2: =IF(H2<>0,VLOOKUP(H2,PRODUCTOS[],4,0),"") -> 250 | L2: 2 | M2: =IF(L2>0,(BASE[[#This Row],[CANTIDAD]]*BASE[[#This Row],[PRECIO UNIT.]])*0.16,"") -> 80 | N2: =IF(L2>0,(K2*L2)+M2,"") -> 580.00
A3: 2017-01-01 | B3: 2 | C3: 2017-02-09 | D3: -27 | E3: =IF(BASE[[#This Row],[DIAS DE MORA]]<0,"VENCIDO",IF(BASE[[#This Row],[FECHA DE VENC.]]>1,"PENDIENTE","")) -> VENCIDO | F3: 1002 | G3: =IF(F3<>0,VLOOKUP(F3,CLIENTE[],2,0),"") -> ROSA ZZZZZ | H3: 2001 | I3: =IF(H3<>0,VLOOKUP(H3,PRODUCTOS[],2,0),"") -> CPU HP | J3: =IF(H3<>0,VLOOKUP(H3,PRODUCTOS[],3,0),"") -> 500 GB DE DISCO DURO | K3: =IF(H3<>0,VLOOKUP(H3,PRODUCTOS[],4,0),"") -> 3000 | L3: 3 | M3: =IF(L3>0,(BASE[[#This Row],[CANTIDAD]]*BASE[[#This Row],[PRECIO UNIT.]])*0.16,"") -> 1440 | N3: 10,440.00
A4: 2017-01-02 | B4: 3 | C4: 2017-02-02 | D4: -34 | E4: =IF(BASE[[#This Row],[DIAS DE MORA]]<0,"VENCIDO",IF(BASE[[#This Row],[FECHA DE VENC.]]>1,"PENDIENTE","")) -> VENCIDO | F4: 1002 | G4: =IF(F4<>0,VLOOKUP(F4,CLIENTE[],2,0),"") -> ROSA ZZZZZ | H4: 2002 | I4: =IF(H4<>0,VLOOKUP(H4,PRODUCTOS[],2,0),"") -> MONITORES HP | J4: =IF(H4<>0,VLOOKUP(H4,PRODUCTOS[],3,0),"") -> 21 PULGADAS | K4: =IF(H4<>0,VLOOKUP(H4,PRODUCTOS[],4,0),"") -> 1000 | L4: 1 | M4: =IF(L4>0,(BASE[[#This Row],[CANTIDAD]]*BASE[[#This Row],[PRECIO UNIT.]])*0.16,"") -> 160 | N4: 1,160.00
A5: 2017-01-03 | B5: 4 | C5: 2017-02-09 | D5: -27 | E5: =IF(BASE[[#This Row],[DIAS DE MORA]]<0,"VENCIDO",IF(BASE[[#This Row],[FECHA DE VENC.]]>1,"PENDIENTE","")) -> VENCIDO | F5: 1003 | G5: =IF(F5<>0,VLOOKUP(F5,CLIENTE[],2,0),"") -> MARIA YYYYY | H5: 2003 | I5: =IF(H5<>0,VLOOKUP(H5,PRODUCTOS[],2,0),"") -> MOUSE | J5: =IF(H5<>0,VLOOKUP(H5,PRODUCTOS[],3,0),"") -> COLOR NEGRO | K5: =IF(H5<>0,VLOOKUP(H5,PRODUCTOS[],4,0),"") -> 150 | L5: 1 | M5: =IF(L5>0,(BASE[[#This Row],[CANTIDAD]]*BASE[[#This Row],[PRECIO UNIT.]])*0.16,"") -> 24 | N5: 174.00
A6: 2017-01-04 | B6: 5 | C6: 2017-02-02 | D6: -34 | E6: =IF(BASE[[#This Row],[DIAS DE MORA]]<0,"VENCIDO",IF(BASE[[#This Row],[FECHA DE VENC.]]>1,"PENDIENTE","")) -> VENCIDO | F6: 1001 | G6: =IF(F6<>0,VLOOKUP(F6,CLIENTE[],2,0),"") -> CARLOS XXXX | H6: 2004 | I6: =IF(H6<>0,VLOOKUP(H6,PRODUCTOS[],2,0),"") -> TECLADO | J6: =IF(H6<>0,VLOOKUP(H6,PRODUCTOS[],3,0),"") -> GENIUS | K6: =IF(H6<>0,VLOOKUP(H6,PRODUCTOS[],4,0),"") -> 150 | L6: 1 | M6: =IF(L6>0,(BASE[[#This Row],[CANTIDAD]]*BASE[[#This Row],[PRECIO UNIT.]])*0.16,"") -> 24 | N6: 174.00
A7: 2017-01-05 | B7: 6 | C7: 2017-02-12 | D7: -24 | E7: =IF(BASE[[#This Row],[DIAS DE MORA]]<0,"VENCIDO",IF(BASE[[#This Row],[FECHA DE VENC.]]>1,"PENDIENTE","")) -> VENCIDO | F7: 1002 | G7: =IF(F7<>0,VLOOKUP(F7,CLIENTE[],2,0),"") -> ROSA ZZZZZ | H7: 2005 | I7: =IF(H7<>0,VLOOKUP(H7,PRODUCTOS[],2,0),"") -> CUADERNOS | J7: =IF(H7<>0,VLOOKUP(H7,PRODUCTOS[],3,0),"") -> NOTE | K7: =IF(H7<>0,VLOOKUP(H7,PRODUCTOS[],4,0),"") -> 25 | L7: 1 | M7: =IF(L7>0,(BASE[[#This Row],[CANTIDAD]]*BASE[[#This Row],[PRECIO UNIT.]])*0.16,"") -> 4 | N7: 29.00
A8: 2017-01-05 | B8: 7 | C8: 2017-02-02 | D8: -34 | E8: =IF(BASE[[#This Row],[DIAS DE MORA]]<0,"VENCIDO",IF(BASE[[#This Row],[FECHA DE VENC.]]>1,"PENDIENTE","")) -> VENCIDO | F8: 1002 | G8: =IF(F8<>0,VLOOKUP(F8,CLIENTE[],2,0),"") -> ROSA ZZZZZ | H8: 2006 | I8: =IF(H8<>0,VLOOKUP(H8,PRODUCTOS[],2,0),"") -> LAPICEROS | J8: =IF(H8<>0,VLOOKUP(H8,PRODUCTOS[],3,0),"") -> BIG | K8: =IF(H8<>0,VLOOKUP(H8,PRODUCTOS[],4,0),"") -> 10 | L8: 1 | M8: =IF(L8>0,(BASE[[#This Row],[CANTIDAD]]*BASE[[#This Row],[PRECIO UNIT.]])*0.16,"") -> 1.6 | N8: 11.60
A9: 2017-01-06 | B9: 8 | C9: 2017-02-02 | D9: -34 | E9: =IF(BASE[[#This Row],[DIAS DE MORA]]<0,"VENCIDO",IF(BASE[[#This Row],[FECHA DE VENC.]]>1,"PENDIENTE","")) -> VENCIDO | F9: 1001 | G9: =IF(F9<>0,VLOOKUP(F9,CLIENTE[],2,0),"") -> CARLOS XXXX | H9: 2007 | I9: =IF(H9<>0,VLOOKUP(H9,PRODUCTOS[],2,0),"") -> AMPOS | J9: =IF(H9<>0,VLOOKUP(H9,PRODUCTOS[],3,0),"") -> ESPECIALES | K9: =IF(H9<>0,VLOOKUP(H9,PRODUCTOS[],4,0),"") -> 70 | L9: 1 | M9: =IF(L9>0,(BASE[[#This Row],[CANTIDAD]]*BASE[[#This Row],[PRECIO UNIT.]])*0.16,"") -> 11.2 | N9: 81.20
A10: 2017-01-06 | B10: 9 | C10: 2017-02-02 | D10: -34 | E10: =IF(BASE[[#This Row],[DIAS DE MORA]]<0,"VENCIDO",IF(BASE[[#This Row],[FECHA DE VENC.]]>1,"PENDIENTE","")) -> VENCIDO | F10: 1001 | G10: =IF(F10<>0,VLOOKUP(F10,CLIENTE[],2,0),"") -> CARLOS XXXX | H10: 2008 | I10: =IF(H10<>0,VLOOKUP(H10,PRODUCTOS[],2,0),"") -> LAPTOP TOSHIBA | J10: =IF(H10<>0,VLOOKUP(H10,PRODUCTOS[],3,0),"") -> 1TB DE DISCO DURO | K10: =IF(H10<>0,VLOOKUP(H10,PRODUCTOS[],4,0),"") -> 16000 | L10: 1 | M10: =IF(L10>0,(BASE[[#This Row],[CANTIDAD]]*BASE[[#This Row],[PRECIO UNIT.]])*0.16,"") -> 2560 | N10: 18,560.00
A11: 2017-01-08 | B11: 10 | C11: 2017-02-02 | D11: -34 | E11: =IF(BASE[[#This Row],[DIAS DE MORA]]<0,"VENCIDO",IF(BASE[[#This Row],[FECHA DE VENC.]]>1,"PENDIENTE","")) -> VENCIDO | F11: 1003 | G11: =IF(F11<>0,VLOOKUP(F11,CLIENTE[],2,0),"") -> MARIA YYYYY | H11: 2009 | I11: =IF(H11<>0,VLOOKUP(H11,PRODUCTOS[],2,0),"") -> MEMORIAS RAM | J11: =IF(H11<>0,VLOOKUP(H11,PRODUCTOS[],3,0),"") -> DE 4 GB | K11: =IF(H11<>0,VLOOKUP(H11,PRODUCTOS[],4,0),"") -> 500 | L11: 5 | M11: =IF(L11>0,(BASE[[#This Row],[CANTIDAD]]*BASE[[#This Row],[PRECIO UNIT.]])*0.16,"") -> 400 | N11: 2,900.00
A12: 2017-01-09 | B12: 11 | C12: 2017-02-02 | D12: -34 | E12: =IF(BASE[[#This Row],[DIAS DE MORA]]<0,"VENCIDO",IF(BASE[[#This Row],[FECHA DE VENC.]]>1,"PENDIENTE","")) -> VENCIDO | F12: 1002 | G12: =IF(F12<>0,VLOOKUP(F12,CLIENTE[],2,0),"") -> ROSA ZZZZZ | H12: 2007 | I12: =IF(H12<>0,VLOOKUP(H12,PRODUCTOS[],2,0),"") -> AMPOS | J12: =IF(H12<>0,VLOOKUP(H12,PRODUCTOS[],3,0),"") -> ESPECIALES | K12: =IF(H12<>0,VLOOKUP(H12,PRODUCTOS[],4,0),"") -> 70 | L12: 2 | M12: =IF(L12>0,(BASE[[#This Row],[CANTIDAD]]*BASE[[#This Row],[PRECIO UNIT.]])*0.16,"") -> 22.4 | N12: 162.40
A13: 2017-01-24 | B13: 12 | C13: 2017-02-28 | D13: -8 | E13: =IF(BASE[[#This Row],[DIAS DE MORA]]<0,"VENCIDO",IF(BASE[[#This Row],[FECHA DE VENC.]]>1,"PENDIENTE","")) -> VENCIDO | F13: 1003 | G13: =IF(F13<>0,VLOOKUP(F13,CLIENTE[],2,0),"") -> MARIA YYYYY | H13: 2002 | I13: =IF(H13<>0,VLOOKUP(H13,PRODUCTOS[],2,0),"") -> MONITORES HP | J13: =IF(H13<>0,VLOOKUP(H13,PRODUCTOS[],3,0),"") -> 21 PULGADAS | K13: =IF(H13<>0,VLOOKUP(H13,PRODUCTOS[],4,0),"") -> 1000 | L13: 4 | M13: =IF(L13>0,(BASE[[#This Row],[CANTIDAD]]*BASE[[#This Row],[PRECIO UNIT.]])*0.16,"") -> 640 | N13: 4,640.00
A14: 2017-01-24 | B14: 13 | C14: 2017-02-02 | D14: -34 | E14: =IF(BASE[[#This Row],[DIAS DE MORA]]<0,"VENCIDO",IF(BASE[[#This Row],[FECHA DE VENC.]]>1,"PENDIENTE","")) -> VENCIDO | F14: 1001 | G14: =IF(F14<>0,VLOOKUP(F14,CLIENTE[],2,0),"") -> CARLOS XXXX | H14: 2006 | I14: =IF(H14<>0,VLOOKUP(H14,PRODUCTOS[],2,0),"") -> LAPICEROS | J14: =IF(H14<>0,VLOOKUP(H14,PRODUCTOS[],3,0),"") -> BIG | K14: =IF(H14<>0,VLOOKUP(H14,PRODUCTOS[],4,0),"") -> 10 | L14: 1 | M14: =IF(L14>0,(BASE[[#This Row],[CANTIDAD]]*BASE[[#This Row],[PRECIO UNIT.]])*0.16,"") -> 1.6 | N14: 11.60
A15: 2017-01-25 | B15: 14 | C15: 2017-01-25 | D15: -41 | E15: =IF(BASE[[#This Row],[DIAS DE MORA]]<0,"VENCIDO",IF(BASE[[#This Row],[FECHA DE VENC.]]>1,"PENDIENTE","")) -> VENCIDO | F15: 1002 | G15: =IF(F15<>0,VLOOKUP(F15,CLIENTE[],2,0),"") -> ROSA ZZZZZ | H15: 2004 | I15: =IF(H15<>0,VLOOKUP(H15,PRODUCTOS[],2,0),"") -> TECLADO | J15: =IF(H15<>0,VLOOKUP(H15,PRODUCTOS[],3,0),"") -> GENIUS | K15: =IF(H15<>0,VLOOKUP(H15,PRODUCTOS[],4,0),"") -> 150 | L15: 2 | M15: =IF(L15>0,(BASE[[#This Row],[CANTIDAD]]*BASE[[#This Row],[PRECIO UNIT.]])*0.16,"") -> 48 | N15: 348.00
A16: 2017-01-28 | B16: 15 | C16: 2017-01-28 | D16: -38 | E16: =IF(BASE[[#This Row],[DIAS DE MORA]]<0,"VENCIDO",IF(BASE[[#This Row],[FECHA DE VENC.]]>1,"PENDIENTE","")) -> VENCIDO | F16: 1001 | G16: =IF(F16<>0,VLOOKUP(F16,CLIENTE[],2,0),"") -> CARLOS XXXX | H16: 2000 | I16: =IF(H16<>0,VLOOKUP(H16,PRODUCTOS[],2,0),"") -> ABANICO | J16: =IF(H16<>0,VLOOKUP(H16,PRODUCTOS[],3,0),"") -> NEGRO, MARCA XXX | K16: =IF(H16<>0,VLOOKUP(H16,PRODUCTOS[],4,0),"") -> 250 | L16: 3 | M16: =IF(L16>0,(BASE[[#This Row],[CANTIDAD]]*BASE[[#This Row],[PRECIO UNIT.]])*0.16,"") -> 120 | N16: 870.00
A17: 2017-01-29 | B17: 16 | C17: 2017-02-15 | D17: -21 | E17: =IF(BASE[[#This Row],[DIAS DE MORA]]<0,"VENCIDO",IF(BASE[[#This Row],[FECHA DE VENC.]]>1,"PENDIENTE","")) -> VENCIDO | G17: =IF(F17<>0,VLOOKUP(F17,CLIENTE[],2,0),"") ->  | I17: =IF(H17<>0,VLOOKUP(H17,PRODUCTOS[],2,0),"") ->  | J17: =IF(H17<>0,VLOOKUP(H17,PRODUCTOS[],3,0),"") ->  | K17: =IF(H17<>0,VLOOKUP(H17,PRODUCTOS[],4,0),"") ->  | M17: =IF(L17>0,(BASE[[#This Row],[CANTIDAD]]*BASE[[#This Row],[PRECIO UNIT.]])*0.16,"") -> 
A18: 2017-02-01 | B18: 17 | C18: 2017-03-03 | D18: =IF(C18=ISBLANK(0),0,IF(C18<TODAY(),DAYS360(TODAY(),C18,FALSE),IF(C18>TODAY(),DAYS360(TODAY(),C18,FALSE),0))) -> -3 | E18: =IF(BASE[[#This Row],[DIAS DE MORA]]<0,"VENCIDO",IF(BASE[[#This Row],[FECHA DE VENC.]]>1,"PENDIENTE","")) -> VENCIDO | G18: =IF(F18<>0,VLOOKUP(F18,CLIENTE[],2,0),"") ->  | I18: =IF(H18<>0,VLOOKUP(H18,PRODUCTOS[],2,0),"") ->  | J18: =IF(H18<>0,VLOOKUP(H18,PRODUCTOS[],3,0),"") ->  | K18: =IF(H18<>0,VLOOKUP(H18,PRODUCTOS[],4,0),"") ->  | M18: =IF(L18>0,(BASE[[#This Row],[CANTIDAD]]*BASE[[#This Row],[PRECIO UNIT.]])*0.16,"") -> 
A19: 2017-03-04 | B19: 18 | C19: 2017-04-04 | D19: =IF(C19=ISBLANK(0),0,IF(C19<TODAY(),DAYS360(TODAY(),C19,FALSE),IF(C19>TODAY(),DAYS360(TODAY(),C19,FALSE),0))) -> 28 | E19: =IF(BASE[[#This Row],[DIAS DE MORA]]<0,"VENCIDO",IF(BASE[[#This Row],[FECHA DE VENC.]]>1,"PENDIENTE","")) -> PENDIENTE | F19: 1001 | G19: =IF(F19<>0,VLOOKUP(F19,CLIENTE[],2,0),"") -> CARLOS XXXX | H19: 2001 | I19: =IF(H19<>0,VLOOKUP(H19,PRODUCTOS[],2,0),"") -> CPU HP | J19: =IF(H19<>0,VLOOKUP(H19,PRODUCTOS[],3,0),"") -> 500 GB DE DISCO DURO | K19: =IF(H19<>0,VLOOKUP(H19,PRODUCTOS[],4,0),"") -> 3000 | L19: 2.00 | M19: =IF(L19>0,(BASE[[#This Row],[CANTIDAD]]*BASE[[#This Row],[PRECIO UNIT.]])*0.16,"") -> 960 | N19: =IF(L19>0,(K19*L19)+M19,"") -> 6,960.00

Sheet RESUMEN
A1: NOMBRE DE CLIENTE | B1: CARLOS XXXX
A2: ESTADO | B2: PENDIENTE
A4: Nº DE FACTR | B4: SFECHA | C4: FECHA DE VENC | D4: DIAS MORA | E4: TOTALES
A5: 18 | B5: 2017-03-04 | C5: 2017-04-04 | D5: 28 | E5: 6,960.00
A6: Total general | B6: 42798 | C6: 2017-04-04 | D6: 28 | E6: 6,960.00

Sheet FORMULARIO (hidden)
A3: EJEMPLO DE VALIDACION DE DATOS DINAMICO
A7: https://aplicaexcelcontable.com/blog
A10: ID CONTABLE | B10: NOMBRE DEL CLIENTE | C10: DIRECCION
A11: 20007 | B11: =IF(A11<>0,VLOOKUP(A11,CLIENTES[],2,0)) -> JOAN EULALIA | C11: SANDINO

Sheet TABLACLI (hidden)
A1: ID CONTABLE | B1: NOMBRE DEL CLIENTE | C1: DIRECCION
A2: 2000 | B2: CARLOS WILSON
A3: 20001 | B3: NELSON PEÑA
A4: 20003 | B4: ADRIANA TELLEZ
A5: 2004 | B5: LUCIA FERMIN
A6: 20005 | B6: ROSA LINA
A7: 20006 | B7: NIDIA VLADIMIR
A8: 20007 | B8: JOAN EULALIA
A9: 20008 | B9: ALEXA IDANIA
